[Event "*** Titled Tuesday Blitz"]
[Site "Chess.com"]
[Date "2020.12.01"]
[Round "6"]
[White "Manukyan_Artak"]
[Black "Jungle_Jaguar"]
[Result "1/2-1/2"]
[WhiteElo "2367"]
[BlackElo "2541"]
[TimeControl "180+1"]
[EndTime "11:06:07 PST"]
[Termination "Game drawn - insufficient material"]

1. e4 {[%clk 0:02:57.9]} 1... c5 {[%clk 0:02:58.5]} 2. Nf3 {[%clk 0:02:57.5]}
2... d6 {[%clk 0:02:58.3]} 3. Bb5+ {[%clk 0:02:56.8]} 3... Nd7 {[%clk
0:02:55.7]} 4. O-O {[%clk 0:02:56.1]} 4... a6 {[%clk 0:02:55.2]} 5. Bd3 {[%clk
0:02:51.5]} 5... g6 {[%clk 0:02:53.5]} 6. a4 {[%clk 0:02:51]} 6... Bg7 {[%clk
0:02:53.1]} 7. c3 {[%clk 0:02:50.4]} 7... Ne5 {[%clk 0:02:47.6]} 8. Be2 {[%clk
0:02:48.8]} 8... Nf6 {[%clk 0:02:46.2]} 9. d4 {[%clk 0:02:47.2]} 9... Nxf3+
{[%clk 0:02:40.1]} 10. Bxf3 {[%clk 0:02:48.1]} 10... O-O {[%clk 0:02:40.7]} 11.
Bg5 {[%clk 0:02:35.6]} 11... h6 {[%clk 0:02:37.4]} 12. Bh4 {[%clk 0:02:35.1]}
12... g5 {[%clk 0:02:37]} 13. Bg3 {[%clk 0:02:35]} 13... g4 {[%clk 0:02:37.4]}
14. e5 {[%clk 0:02:32.1]} 14... gxf3 {[%clk 0:02:30.5]} 15. exf6 {[%clk
0:02:32.1]} 15... fxg2 {[%clk 0:02:30.5]} 16. Kxg2 {[%clk 0:02:28.3]} 16... Bxf6
{[%clk 0:02:23]} 17. dxc5 {[%clk 0:02:26]} 17... dxc5 {[%clk 0:02:21.1]} 18.
Qxd8 {[%clk 0:02:25.8]} 18... Rxd8 {[%clk 0:02:20.4]} 19. Na3 {[%clk 0:02:26.7]}
19... Be6 {[%clk 0:02:11.6]} 20. Rfd1 {[%clk 0:02:23.1]} 20... Bb3 {[%clk
0:02:11.6]} 21. Rxd8+ {[%clk 0:02:20]} 21... Rxd8 {[%clk 0:02:12.5]} 22. a5
{[%clk 0:02:06.4]} 22... Rd2 {[%clk 0:02:07]} 23. Rb1 {[%clk 0:02:02.4]} 23...
e5 {[%clk 0:02:00]} 24. Kf3 {[%clk 0:01:53.6]} 24... Ba2 {[%clk 0:01:27.4]} 25.
Re1 {[%clk 0:01:45.1]} 25... Rxb2 {[%clk 0:01:26.8]} 26. Bxe5 {[%clk 0:01:42.5]}
26... Bxe5 {[%clk 0:01:26.1]} 27. Rxe5 {[%clk 0:01:42.4]} 27... Rb3 {[%clk
0:01:25.8]} 28. Nc4 {[%clk 0:01:38.1]} 28... Rxc3+ {[%clk 0:01:25.4]} 29. Ne3
{[%clk 0:01:38.1]} 29... Be6 {[%clk 0:01:19.3]} 30. Ke2 {[%clk 0:01:21.2]} 30...
c4 {[%clk 0:01:18.9]} 31. f4 {[%clk 0:01:18.9]} 31... Rc1 {[%clk 0:01:05.4]} 32.
f5 {[%clk 0:01:17.2]} 32... Bd7 {[%clk 0:01:05.8]} 33. Rc5 {[%clk 0:01:11.6]}
33... c3 {[%clk 0:01:00.9]} 34. Nd5 {[%clk 0:01:09.8]} 34... Bb5+ {[%clk
0:00:57.6]} 35. Ke3 {[%clk 0:00:55.3]} 35... c2 {[%clk 0:00:54.4]} 36. Kd2
{[%clk 0:00:54.1]} 36... Rh1 {[%clk 0:00:49]} 37. Kxc2 {[%clk 0:00:52]} 37...
Rxh2+ {[%clk 0:00:48.3]} 38. Kc3 {[%clk 0:00:52.4]} 38... Kg7 {[%clk 0:00:37.4]}
39. Rc7 {[%clk 0:00:42.3]} 39... Bc6 {[%clk 0:00:36.5]} 40. f6+ {[%clk
0:00:42.5]} 40... Kg6 {[%clk 0:00:31.8]} 41. Ne7+ {[%clk 0:00:42.9]} 41... Kxf6
{[%clk 0:00:31.6]} 42. Nxc6 {[%clk 0:00:43.8]} 42... bxc6 {[%clk 0:00:28.3]} 43.
Rxc6+ {[%clk 0:00:44.7]} 43... Kg5 {[%clk 0:00:24.8]} 44. Rxa6 {[%clk
0:00:45.6]} 44... f5 {[%clk 0:00:25.1]} 45. Ra8 {[%clk 0:00:44.7]} 45... Kf4
{[%clk 0:00:18.1]} 46. Kb3 {[%clk 0:00:39]} 46... Rh1 {[%clk 0:00:14.1]} 47. Kb2
{[%clk 0:00:38.5]} 47... Rd1 {[%clk 0:00:12.2]} 48. a6 {[%clk 0:00:29.5]} 48...
Rd6 {[%clk 0:00:12.3]} 49. Kc3 {[%clk 0:00:29.2]} 49... h5 {[%clk 0:00:10.8]}
50. Kc4 {[%clk 0:00:29.2]} 50... h4 {[%clk 0:00:11]} 51. Kb5 {[%clk 0:00:26.1]}
51... Rh6 {[%clk 0:00:08.1]} 52. a7 {[%clk 0:00:25.7]} 52... Rh7 {[%clk
0:00:06.9]} 53. Kb6 {[%clk 0:00:24.5]} 53... h3 {[%clk 0:00:05]} 54. Rc8 {[%clk
0:00:20.6]} 54... Rxa7 {[%clk 0:00:04]} 55. Kxa7 {[%clk 0:00:21.5]} 55... h2
{[%clk 0:00:04.5]} 56. Rc1 {[%clk 0:00:19.4]} 56... Kg3 {[%clk 0:00:04.2]} 57.
Kb6 {[%clk 0:00:19.7]} 57... f4 {[%clk 0:00:04.3]} 58. Kc5 {[%clk 0:00:20.2]}
58... f3 {[%clk 0:00:03.8]} 59. Kd4 {[%clk 0:00:20.7]} 59... f2 {[%clk
0:00:03.9]} 60. Ke3 {[%clk 0:00:21.1]} 60... Kg2 {[%clk 0:00:04.6]} 61. Ke2
{[%clk 0:00:21.3]} 61... h1=Q {[%clk 0:00:03]} 62. Rxh1 {[%clk 0:00:21]} 62...
Kxh1 {[%clk 0:00:03.6]} 63. Kxf2 {[%clk 0:00:21.6]} 1/2-1/2

[Event "*** Titled Tuesday Blitz"]
[Site "Chess.com"]
[Date "2020.12.01"]
[Round "6"]
[White "Ze-Pequeno"]
[Black "ShahMatKanal"]
[Result "0-1"]
[WhiteElo "2181"]
[BlackElo "2484"]
[TimeControl "180+1"]
[EndTime "11:06:12 PST"]
[Termination "ShahMatKanal won on time"]

1. e4 {[%clk 0:03:00]} 1... c5 {[%clk 0:02:58.1]} 2. Nf3 {[%clk 0:02:58.3]} 2...
Nc6 {[%clk 0:02:57.1]} 3. d4 {[%clk 0:02:58]} 3... cxd4 {[%clk 0:02:57]} 4. Nxd4
{[%clk 0:02:58.9]} 4... e5 {[%clk 0:02:57.3]} 5. Nb5 {[%clk 0:02:58.6]} 5... a6
{[%clk 0:02:57.4]} 6. Nd6+ {[%clk 0:02:58.3]} 6... Bxd6 {[%clk 0:02:57.9]} 7.
Qxd6 {[%clk 0:02:59.2]} 7... Qf6 {[%clk 0:02:58.8]} 8. Qd1 {[%clk 0:02:21.2]}
8... Qg6 {[%clk 0:02:58.2]} 9. Nc3 {[%clk 0:02:19.2]} 9... Nf6 {[%clk
0:02:58.6]} 10. Qd6 {[%clk 0:01:14.4]} 10... Ng8 {[%clk 0:02:46.6]} 11. Qxg6
{[%clk 0:01:10]} 11... hxg6 {[%clk 0:02:46.5]} 12. Be3 {[%clk 0:01:09.6]} 12...
Nge7 {[%clk 0:02:38.9]} 13. O-O-O {[%clk 0:01:08.9]} 13... f5 {[%clk 0:02:26.6]}
14. f3 {[%clk 0:01:06.8]} 14... f4 {[%clk 0:02:26.8]} 15. Bf2 {[%clk 0:01:06.6]}
15... g5 {[%clk 0:02:27.4]} 16. Be2 {[%clk 0:01:04.2]} 16... Rh6 {[%clk
0:02:26]} 17. h3 {[%clk 0:01:03.8]} 17... d6 {[%clk 0:02:23]} 18. Rd2 {[%clk
0:00:59.9]} 18... Bd7 {[%clk 0:02:18.5]} 19. Rhd1 {[%clk 0:00:58.3]} 19... Nc8
{[%clk 0:02:18.9]} 20. Nd5 {[%clk 0:00:55.2]} 20... Kf7 {[%clk 0:02:11.2]} 21.
c4 {[%clk 0:00:40.4]} 21... Rb8 {[%clk 0:02:07.6]} 22. b4 {[%clk 0:00:37.2]}
22... b5 {[%clk 0:02:05]} 23. c5 {[%clk 0:00:35.8]} 23... dxc5 {[%clk
0:02:03.8]} 24. Bxc5 {[%clk 0:00:36]} 24... Be6 {[%clk 0:02:01.7]} 25. a3 {[%clk
0:00:34.4]} 25... Rh8 {[%clk 0:01:53.5]} 26. Nc7 {[%clk 0:00:30.8]} 26... Bb3
{[%clk 0:01:49.8]} 27. Re1 {[%clk 0:00:30.1]} 27... Nb6 {[%clk 0:01:40.8]} 28.
Nxa6 {[%clk 0:00:25]} 28... Rb7 {[%clk 0:01:41.2]} 29. Bxb5 {[%clk 0:00:24.8]}
29... Rc8 {[%clk 0:01:34.4]} 30. Kb2 {[%clk 0:00:23]} 30... Be6 {[%clk
0:01:27.9]} 31. Rc1 {[%clk 0:00:16.3]} 31... Na7 {[%clk 0:01:23.8]} 32. Be2
{[%clk 0:00:15.4]} 32... Na4+ {[%clk 0:01:19.8]} 33. Ka1 {[%clk 0:00:13.1]}
33... Nb5 {[%clk 0:01:19.5]} 34. Bxb5 {[%clk 0:00:11]} 34... Rxb5 {[%clk
0:01:20.4]} 35. Rdc2 {[%clk 0:00:11.4]} 35... Bb3 {[%clk 0:00:46.1]} 36. Rd2
{[%clk 0:00:10.8]} 36... Rb7 {[%clk 0:00:40]} 37. Rd6 {[%clk 0:00:09.3]} 37...
Be6 {[%clk 0:00:33.3]} 38. Rcd1 {[%clk 0:00:08.5]} 38... Ra8 {[%clk 0:00:30.3]}
39. Rxe6 {[%clk 0:00:05.1]} 39... Kxe6 {[%clk 0:00:28.2]} 40. Rd6+ {[%clk
0:00:05.5]} 40... Kf7 {[%clk 0:00:28.4]} 41. Rc6 {[%clk 0:00:04.3]} 41... Nxc5
{[%clk 0:00:24.2]} 42. Nxc5 {[%clk 0:00:04.1]} 42... Rxa3+ {[%clk 0:00:22.9]}
43. Kb2 {[%clk 0:00:05]} 43... Rba7 {[%clk 0:00:22.9]} 44. Nb3 {[%clk
0:00:04.3]} 44... Ra2+ {[%clk 0:00:21.3]} 45. Kc3 {[%clk 0:00:04.6]} 45... Rxg2
{[%clk 0:00:22.2]} 46. Rc5 {[%clk 0:00:03.6]} 46... Rf2 {[%clk 0:00:21.6]} 47.
Rxe5 {[%clk 0:00:03.6]} 47... Rxf3+ {[%clk 0:00:21.5]} 48. Kc4 {[%clk
0:00:04.5]} 48... Rc7+ {[%clk 0:00:19.8]} 49. Nc5 {[%clk 0:00:04.6]} 49... Rf1
{[%clk 0:00:18.2]} 50. Rxg5 {[%clk 0:00:04.2]} 50... f3 {[%clk 0:00:16.9]} 51.
Rf5+ {[%clk 0:00:03.8]} 51... Kg6 {[%clk 0:00:17.2]} 52. b5 {[%clk 0:00:03.4]}
52... Rc1+ {[%clk 0:00:13.5]} 53. Kd4 {[%clk 0:00:03.4]} 53... R1xc5 {[%clk
0:00:09.4]} 54. Rxf3 {[%clk 0:00:02.7]} 54... Rxb5 {[%clk 0:00:08.2]} 55. Rg3+
{[%clk 0:00:01.6]} 55... Kh7 {[%clk 0:00:08.4]} 56. Rg5 {[%clk 0:00:01.6]} 56...
Rxg5 {[%clk 0:00:08.2]} 57. h4 {[%clk 0:00:01.7]} 57... Rg4 {[%clk 0:00:08.4]}
0-1

[Event "*** Titled Tuesday Blitz"]
[Site "Chess.com"]
[Date "2020.12.01"]
[Round "6"]
[White "RaphCamora"]
[Black "queen_iryna"]
[Result "1/2-1/2"]
[WhiteElo "2430"]
[BlackElo "2317"]
[TimeControl "180+1"]
[EndTime "11:06:13 PST"]
[Termination "Game drawn by agreement"]

1. e4 {[%clk 0:03:00.9]} 1... d6 {[%clk 0:02:59.7]} 2. d4 {[%clk 0:03:00]} 2...
Nf6 {[%clk 0:03:00.1]} 3. Nc3 {[%clk 0:02:58.8]} 3... g6 {[%clk 0:03:00]} 4. f4
{[%clk 0:02:57.4]} 4... Bg7 {[%clk 0:02:59.7]} 5. Nf3 {[%clk 0:02:57.2]} 5...
O-O {[%clk 0:02:59.4]} 6. Be3 {[%clk 0:02:57.6]} 6... b6 {[%clk 0:02:58.1]} 7.
Qd2 {[%clk 0:02:52.4]} 7... Bb7 {[%clk 0:02:57.8]} 8. Bd3 {[%clk 0:02:35.3]}
8... c5 {[%clk 0:02:57.4]} 9. d5 {[%clk 0:02:34.8]} 9... a6 {[%clk 0:02:56.3]}
10. a4 {[%clk 0:02:34]} 10... e6 {[%clk 0:02:50]} 11. dxe6 {[%clk 0:02:30.9]}
11... fxe6 {[%clk 0:02:50.9]} 12. O-O {[%clk 0:02:30.5]} 12... d5 {[%clk
0:02:48.7]} 13. e5 {[%clk 0:02:23.9]} 13... Ng4 {[%clk 0:02:48.6]} 14. Bf2
{[%clk 0:02:19.9]} 14... Nxf2 {[%clk 0:02:47.7]} 15. Rxf2 {[%clk 0:02:19]} 15...
Nd7 {[%clk 0:02:36.9]} 16. Raf1 {[%clk 0:02:04.7]} 16... Qe7 {[%clk 0:02:35.1]}
17. Ng5 {[%clk 0:01:56.8]} 17... Rad8 {[%clk 0:02:15.2]} 18. b3 {[%clk
0:01:51.9]} 18... c4 {[%clk 0:02:12.9]} 19. Be2 {[%clk 0:01:48]} 19... d4 {[%clk
0:02:04.8]} 20. Qxd4 {[%clk 0:01:43.7]} 20... Nxe5 {[%clk 0:02:04.2]} 21. Qxb6
{[%clk 0:01:43.8]} 21... cxb3 {[%clk 0:01:57.7]} 22. fxe5 {[%clk 0:01:34.7]}
22... Qxg5 {[%clk 0:01:54.3]} 23. Qxb7 {[%clk 0:01:02.5]} 23... Rxf2 {[%clk
0:01:52.2]} 24. Rxf2 {[%clk 0:01:00.4]} 24... bxc2 {[%clk 0:01:49.3]} 25. Na2
{[%clk 0:00:48.7]} 25... c1=Q+ {[%clk 0:01:40.3]} 26. Nxc1 {[%clk 0:00:47.9]}
26... Qxc1+ {[%clk 0:01:41.2]} 27. Bf1 {[%clk 0:00:48.3]} 27... Bxe5 {[%clk
0:01:32.3]} 28. Qe7 {[%clk 0:00:38.5]} 28... Qc7 {[%clk 0:01:22]} 29. Qxe6+
{[%clk 0:00:33.5]} 29... Kh8 {[%clk 0:01:22]} 30. Rf7 {[%clk 0:00:18.6]} 30...
Qc5+ {[%clk 0:01:03.9]} 31. Kh1 {[%clk 0:00:18.8]} 31... Qd6 {[%clk 0:00:58]}
32. Qh3 {[%clk 0:00:15]} 32... h5 {[%clk 0:00:52.5]} 33. Qf3 {[%clk 0:00:12.3]}
33... Kg8 {[%clk 0:00:30.4]} 34. Qb7 {[%clk 0:00:10.7]} 34... Rf8 {[%clk
0:00:24.1]} 35. Rxf8+ {[%clk 0:00:08.5]} 35... Kxf8 {[%clk 0:00:19.8]} 36. Qc8+
{[%clk 0:00:05.9]} 36... Kg7 {[%clk 0:00:19.2]} 37. Qxa6 {[%clk 0:00:06.1]}
37... Qxa6 {[%clk 0:00:14.9]} 38. Bxa6 {[%clk 0:00:07]} 38... Bd4 {[%clk
0:00:15.3]} 39. Bb5 {[%clk 0:00:07.9]} 39... Kf6 {[%clk 0:00:15]} 40. g3 {[%clk
0:00:08.8]} 40... g5 {[%clk 0:00:14.8]} 41. Kg2 {[%clk 0:00:09.7]} 41... h4
{[%clk 0:00:14]} 42. gxh4 {[%clk 0:00:07.9]} 42... gxh4 {[%clk 0:00:13.9]} 43.
Kh3 {[%clk 0:00:08.8]} 43... Kg7 {[%clk 0:00:12.6]} 44. a5 {[%clk 0:00:09.4]}
44... Kh8 {[%clk 0:00:12.2]} 45. a6 {[%clk 0:00:10.3]} 45... Ba7 {[%clk
0:00:11.6]} 46. Kxh4 {[%clk 0:00:11.2]} 46... Bb6 {[%clk 0:00:11.7]} 47. Kg4
{[%clk 0:00:12.1]} 47... Ba7 {[%clk 0:00:11.9]} 48. h4 {[%clk 0:00:13]} 48...
Bb6 {[%clk 0:00:12.1]} 49. Kf5 {[%clk 0:00:13.3]} 49... Ba7 {[%clk 0:00:12.3]}
50. Kg6 {[%clk 0:00:13.5]} 50... Bb6 {[%clk 0:00:12.4]} 51. Kh5 {[%clk 0:00:14]}
51... Ba7 {[%clk 0:00:12.6]} 52. Kg4 {[%clk 0:00:14.6]} 52... Bb6 {[%clk
0:00:12.8]} 53. Kf5 {[%clk 0:00:15.1]} 53... Ba7 {[%clk 0:00:12.9]} 54. Ke6
{[%clk 0:00:16]} 54... Bb6 {[%clk 0:00:13.2]} 55. Kd5 {[%clk 0:00:16.7]} 55...
Ba7 {[%clk 0:00:13.3]} 56. Kc6 {[%clk 0:00:17.6]} 56... Bg1 {[%clk 0:00:13.3]}
57. Kb7 {[%clk 0:00:18.4]} 57... Bf2 {[%clk 0:00:13.5]} 58. Bc4 {[%clk
0:00:19.1]} 58... Bg1 {[%clk 0:00:13.6]} 59. Bd5 {[%clk 0:00:20]} 59... Bf2
{[%clk 0:00:13.7]} 60. Be4 {[%clk 0:00:20.9]} 60... Bg1 {[%clk 0:00:13.9]} 61.
Bf5 {[%clk 0:00:21.8]} 61... Bf2 {[%clk 0:00:14]} 62. h5 {[%clk 0:00:22.7]}
62... Bg1 {[%clk 0:00:14.1]} 63. h6 {[%clk 0:00:23.6]} 63... Be3 {[%clk
0:00:13.7]} 64. Bg6 {[%clk 0:00:24.5]} 64... Bf2 {[%clk 0:00:13.6]} 65. h7
{[%clk 0:00:25.4]} 65... Be3 {[%clk 0:00:13.4]} 66. Kc6 {[%clk 0:00:25.7]} 66...
Bg1 {[%clk 0:00:12.8]} 67. Bb1 {[%clk 0:00:26.6]} 67... Ba7 {[%clk 0:00:12.5]}
68. Bd3 {[%clk 0:00:27]} 68... Be3 {[%clk 0:00:12]} 69. Kb7 {[%clk 0:00:27.9]}
69... Bf2 {[%clk 0:00:11.9]} 70. Kc6 {[%clk 0:00:28.2]} 70... Bg1 {[%clk
0:00:11.9]} 71. a7 {[%clk 0:00:29.1]} 71... Bxa7 {[%clk 0:00:11.8]} 72. Kd7
{[%clk 0:00:28.9]} 72... Bd4 {[%clk 0:00:11.8]} 1/2-1/2

[Event "*** Titled Tuesday Blitz"]
[Site "Chess.com"]
[Date "2020.12.01"]
[Round "6"]
[White "Srisshhhtea"]
[Black "Agibileg"]
[Result "1-0"]
[WhiteElo "2280"]
[BlackElo "2526"]
[TimeControl "180+1"]
[EndTime "11:06:14 PST"]
[Termination "Srisshhhtea won on time"]

1. e4 {[%clk 0:02:41.5]} 1... c5 {[%clk 0:02:59.3]} 2. Nc3 {[%clk 0:02:39.9]}
2... e6 {[%clk 0:02:59.2]} 3. Nf3 {[%clk 0:02:37.8]} 3... Nc6 {[%clk 0:02:59.6]}
4. d4 {[%clk 0:02:37]} 4... cxd4 {[%clk 0:02:59.5]} 5. Nxd4 {[%clk 0:02:37.9]}
5... Nf6 {[%clk 0:03:00]} 6. Ndb5 {[%clk 0:01:59.7]} 6... d6 {[%clk 0:02:58.5]}
7. Bf4 {[%clk 0:01:55.8]} 7... e5 {[%clk 0:02:58.8]} 8. Bg5 {[%clk 0:01:55.8]}
8... a6 {[%clk 0:02:59.3]} 9. Na3 {[%clk 0:01:49]} 9... Be6 {[%clk 0:02:59.7]}
10. Nc4 {[%clk 0:01:43.4]} 10... Rb8 {[%clk 0:02:59.9]} 11. Ne3 {[%clk
0:01:36.8]} 11... Be7 {[%clk 0:02:58.8]} 12. Bxf6 {[%clk 0:01:34.1]} 12... Bxf6
{[%clk 0:02:59.7]} 13. Bc4 {[%clk 0:01:32]} 13... O-O {[%clk 0:02:56.8]} 14. O-O
{[%clk 0:01:30.9]} 14... Bg5 {[%clk 0:02:54.8]} 15. Ncd5 {[%clk 0:01:27.6]}
15... Ne7 {[%clk 0:02:14.2]} 16. Nxe7+ {[%clk 0:01:25.1]} 16... Qxe7 {[%clk
0:02:12.3]} 17. Nd5 {[%clk 0:01:25.1]} 17... Bxd5 {[%clk 0:01:55.9]} 18. Bxd5
{[%clk 0:01:26]} 18... Kh8 {[%clk 0:01:56.4]} 19. a4 {[%clk 0:01:23.1]} 19... f5
{[%clk 0:01:53.6]} 20. exf5 {[%clk 0:01:21.2]} 20... Rxf5 {[%clk 0:01:54.2]} 21.
Ra3 {[%clk 0:01:20.2]} 21... Rbf8 {[%clk 0:01:53.8]} 22. Rb3 {[%clk 0:01:15.6]}
22... b6 {[%clk 0:01:46.3]} 23. f3 {[%clk 0:01:05.8]} 23... Bf4 {[%clk
0:01:41.3]} 24. Rf2 {[%clk 0:00:54.6]} 24... Qd7 {[%clk 0:00:54.5]} 25. g3
{[%clk 0:00:43.2]} 25... Bh6 {[%clk 0:00:52.6]} 26. Be4 {[%clk 0:00:38.1]} 26...
R5f6 {[%clk 0:00:41.8]} 27. Kg2 {[%clk 0:00:37.4]} 27... Qxa4 {[%clk 0:00:39.5]}
28. Qd3 {[%clk 0:00:29.7]} 28... b5 {[%clk 0:00:38.6]} 29. Ra3 {[%clk
0:00:28.3]} 29... Qb4 {[%clk 0:00:37.1]} 30. Rxa6 {[%clk 0:00:28.4]} 30... g6
{[%clk 0:00:27.8]} 31. c3 {[%clk 0:00:27.3]} 31... Qc5 {[%clk 0:00:20.3]} 32.
Rc6 {[%clk 0:00:27.7]} 32... Qe3 {[%clk 0:00:19.9]} 33. Qxe3 {[%clk 0:00:26.1]}
33... Bxe3 {[%clk 0:00:19.3]} 34. Re2 {[%clk 0:00:27]} 34... Bc5 {[%clk
0:00:17.8]} 35. b4 {[%clk 0:00:25.2]} 35... Ba7 {[%clk 0:00:17.8]} 36. Rd2
{[%clk 0:00:25.6]} 36... Rd8 {[%clk 0:00:18]} 37. Rd5 {[%clk 0:00:25]} 37... Kg7
{[%clk 0:00:14]} 38. Rxb5 {[%clk 0:00:24.9]} 38... d5 {[%clk 0:00:13]} 39. Bxd5
{[%clk 0:00:24.1]} 39... Rxd5 {[%clk 0:00:11.8]} 40. Rxd5 {[%clk 0:00:23.6]}
40... Rxc6 {[%clk 0:00:11.5]} 41. Rd7+ {[%clk 0:00:24.1]} 41... Kh6 {[%clk
0:00:12.1]} 42. Rxa7 {[%clk 0:00:25]} 42... Rxc3 {[%clk 0:00:12.6]} 43. b5
{[%clk 0:00:21.8]} 43... Rc2+ {[%clk 0:00:12.8]} 44. Kh3 {[%clk 0:00:21.5]}
44... Rb2 {[%clk 0:00:13.4]} 45. Rb7 {[%clk 0:00:21]} 45... Kg5 {[%clk
0:00:13.4]} 46. b6 {[%clk 0:00:16.5]} 46... h5 {[%clk 0:00:13.5]} 47. Rb8 {[%clk
0:00:15.5]} 47... Kh6 {[%clk 0:00:12]} 48. b7 {[%clk 0:00:15.8]} 48... Kg7
{[%clk 0:00:09.7]} 49. g4 {[%clk 0:00:15.5]} 49... hxg4+ {[%clk 0:00:09.1]} 50.
Kxg4 {[%clk 0:00:16.4]} 50... Rb5 {[%clk 0:00:08.6]} 51. h4 {[%clk 0:00:16.2]}
51... Kh7 {[%clk 0:00:08.7]} 52. Kg3 {[%clk 0:00:16.4]} 52... Rb2 {[%clk
0:00:07.8]} 53. Kh3 {[%clk 0:00:16.4]} 53... Kg7 {[%clk 0:00:07.7]} 54. Kg3
{[%clk 0:00:16.5]} 54... Kh7 {[%clk 0:00:07.3]} 55. Kg4 {[%clk 0:00:16.5]} 55...
Rb5 {[%clk 0:00:07.1]} 56. h5 {[%clk 0:00:15.2]} 56... gxh5+ {[%clk 0:00:07]}
57. Kxh5 {[%clk 0:00:16.1]} 57... e4+ {[%clk 0:00:07.2]} 58. Kg4 {[%clk
0:00:16.5]} 58... e3 {[%clk 0:00:04.8]} 59. Kg3 {[%clk 0:00:16.7]} 59... Rg5+
{[%clk 0:00:02.6]} 60. Kf4 {[%clk 0:00:15.5]} 1-0

[Event "*** Titled Tuesday Blitz"]
[Site "Chess.com"]
[Date "2020.12.01"]
[Round "6"]
[White "Ladislav1969"]
[Black "chess94cu"]
[Result "1-0"]
[WhiteElo "2370"]
[BlackElo "2548"]
[TimeControl "180+1"]
[EndTime "11:06:18 PST"]
[Termination "Ladislav1969 won by resignation"]

1. e4 {[%clk 0:03:00.9]} 1... d6 {[%clk 0:02:59.1]} 2. d4 {[%clk 0:03:01]} 2...
Nf6 {[%clk 0:02:58.9]} 3. Nc3 {[%clk 0:03:01.7]} 3... Nbd7 {[%clk 0:02:59.4]} 4.
f4 {[%clk 0:02:59.3]} 4... e5 {[%clk 0:02:59.7]} 5. dxe5 {[%clk 0:02:58.6]} 5...
dxe5 {[%clk 0:02:58.3]} 6. Nf3 {[%clk 0:02:57]} 6... Bb4 {[%clk 0:02:50.4]} 7.
fxe5 {[%clk 0:02:41.3]} 7... Nxe4 {[%clk 0:02:43.9]} 8. Qd4 {[%clk 0:02:37.3]}
8... Bxc3+ {[%clk 0:02:43.1]} 9. bxc3 {[%clk 0:02:35.2]} 9... Ndc5 {[%clk
0:02:36.2]} 10. Ba3 {[%clk 0:01:56]} 10... b6 {[%clk 0:02:22.2]} 11. Rd1 {[%clk
0:01:50.8]} 11... Qe7 {[%clk 0:02:02]} 12. Bb5+ {[%clk 0:01:49.3]} 12... Bd7
{[%clk 0:02:01.4]} 13. Bxd7+ {[%clk 0:01:07.3]} 13... Qxd7 {[%clk 0:02:00.2]}
14. O-O {[%clk 0:00:43.7]} 14... Qc6 {[%clk 0:01:50.3]} 15. e6 {[%clk
0:00:36.1]} 15... Nxe6 {[%clk 0:01:30.7]} 16. Qe5 {[%clk 0:00:18.9]} 16... f6
{[%clk 0:00:53.8]} 17. Nd4 {[%clk 0:00:18.8]} 17... fxe5 {[%clk 0:00:49.7]} 18.
Nxc6 {[%clk 0:00:19.4]} 18... Nxc3 {[%clk 0:00:42.7]} 19. Rde1 {[%clk
0:00:19.2]} 19... e4 {[%clk 0:00:36.9]} 20. Bb2 {[%clk 0:00:14.5]} 20... Nd5
{[%clk 0:00:30.2]} 21. Rxe4 {[%clk 0:00:13.7]} 21... Kd7 {[%clk 0:00:30.7]} 22.
Ne5+ {[%clk 0:00:13.2]} 22... Kd6 {[%clk 0:00:28.8]} 23. Nf7+ {[%clk 0:00:12.9]}
23... Kd7 {[%clk 0:00:28.5]} 24. Nxh8 {[%clk 0:00:13.1]} 24... Rxh8 {[%clk
0:00:28.1]} 25. Rf7+ {[%clk 0:00:12.5]} 25... Kd6 {[%clk 0:00:27.6]} 26. Be5+
{[%clk 0:00:10.8]} 26... Kc6 {[%clk 0:00:25.4]} 27. Bxg7 {[%clk 0:00:10.5]}
27... Re8 {[%clk 0:00:16.6]} 28. Bf6 {[%clk 0:00:10.1]} 28... a5 {[%clk
0:00:12.8]} 29. Re1 {[%clk 0:00:08.3]} 29... a4 {[%clk 0:00:10]} 30. g4 {[%clk
0:00:08.4]} 30... Kd6 {[%clk 0:00:08.3]} 31. g5 {[%clk 0:00:07.6]} 31... c5
{[%clk 0:00:07.2]} 32. Rxh7 {[%clk 0:00:07.5]} 32... Ndf4 {[%clk 0:00:06.7]} 33.
Rb7 {[%clk 0:00:06.1]} 33... Kc6 {[%clk 0:00:06.5]} 34. Re7 {[%clk 0:00:04.8]}
34... Nh3+ {[%clk 0:00:07]} 35. Kg2 {[%clk 0:00:04.4]} 35... Nef4+ {[%clk
0:00:07.5]} 36. Kf3 {[%clk 0:00:04.3]} 36... Rg8 {[%clk 0:00:07.5]} 37. R1e6+
{[%clk 0:00:03.2]} 37... Nxe6 {[%clk 0:00:07.5]} 38. Rxe6+ {[%clk 0:00:03.6]}
38... Kd5 {[%clk 0:00:08.4]} 39. Re5+ {[%clk 0:00:03.5]} 39... Kd6 {[%clk
0:00:08.4]} 40. Rf5 {[%clk 0:00:03]} 40... Ke6 {[%clk 0:00:08.3]} 41. Kg4 {[%clk
0:00:03]} 41... Ng1 {[%clk 0:00:06.8]} 42. h4 {[%clk 0:00:02.1]} 42... a3 {[%clk
0:00:05.3]} 43. Re5+ {[%clk 0:00:02.8]} 43... Kf7 {[%clk 0:00:05.3]} 44. Re1
{[%clk 0:00:02.7]} 44... b5 {[%clk 0:00:03.7]} 45. Kg3 {[%clk 0:00:03]} 45... b4
{[%clk 0:00:04.4]} 46. Rxg1 {[%clk 0:00:03.8]} 46... c4 {[%clk 0:00:04.8]} 47.
Rf1 {[%clk 0:00:04.6]} 47... Kg6 {[%clk 0:00:04.6]} 48. Bd4 {[%clk 0:00:05.5]}
48... Re8 {[%clk 0:00:04.9]} 49. Rf6+ {[%clk 0:00:04.8]} 49... Kh7 {[%clk
0:00:05.3]} 50. Rf7+ {[%clk 0:00:04.5]} 50... Kg6 {[%clk 0:00:05.4]} 51. Rf6+
{[%clk 0:00:04.7]} 51... Kh7 {[%clk 0:00:05.7]} 52. Rh6+ {[%clk 0:00:04.9]}
52... Kg8 {[%clk 0:00:05.5]} 53. Rh8+ {[%clk 0:00:05.8]} 53... Kf7 {[%clk
0:00:05.9]} 54. Rxe8 {[%clk 0:00:06.7]} 54... Kxe8 {[%clk 0:00:06.8]} 55. g6
{[%clk 0:00:07.1]} 55... Kf8 {[%clk 0:00:07]} 56. h5 {[%clk 0:00:07.3]} 56...
Kg8 {[%clk 0:00:07.9]} 57. Kg4 {[%clk 0:00:07.7]} 57... b3 {[%clk 0:00:07.9]}
58. cxb3 {[%clk 0:00:07.1]} 58... cxb3 {[%clk 0:00:08.8]} 59. axb3 {[%clk
0:00:07.5]} 59... a2 {[%clk 0:00:09.7]} 60. h6 {[%clk 0:00:07.2]} 60... a1=Q
{[%clk 0:00:10.6]} 61. Bxa1 {[%clk 0:00:07.2]} 1-0